[Event "EWIRCC 2019"]
[Site "Monte-Carlo"]
[Date "2019.12.01"]
[Round "8.6"]
[White "Zhukova, Natalia"]
[Black "Gunina, Valentina"]
[Result "1-0"]
[ECO "A28"]
[WhiteElo "2323"]
[BlackElo "2509"]
[Annotator "ChessBase"]
[PlyCount "67"]
[EventDate "2019.11.28"]
[EventType "swiss"]
[EventCountry "MNC"]
[SourceTitle "playchess.com"]
[Source "ChessBase"]
[SourceQuality "1"]
[TimeControl "5400+30"]

1. c4 {[%emt 1:15:11]} Nf6 {[%emt 1:15:12]} 2. Nc3 {[%emt 0:00:22]} e5 {[%emt 0:00:25]} 3. Nf3 {[%emt 0:00:21]} Nc6 {[%emt 0:00:23]} 4. e4 {[%emt 0:00:33]} Bb4 {[%emt 0:00:22]} 5. d3 {[%emt 0:00:21]} d6 {[%emt 0:00:23]} 6. a3 {[%emt 0:00:32]} Bxc3+ {[%emt 0:00:22]} 7. bxc3 {[%emt 0:00:21]} h6 {[%emt 0:00:21]} 8. g3 {[%emt 0:00:26]} O-O {[%emt 0:00:27]} 9. Bg2 {[%emt 0:00:21]} Nh7 {[%emt 0:00:22]} 10. O-O {[%emt 0:00:35]} f5 {[%emt 0:00:26]} 11. exf5 {[%emt 0:00:27]} Bxf5 {[%emt 0:00:22]} 12. Nh4 {[%emt 0:00:36]} Be6 {[%emt 0:00:33]} 13. f4 {[%emt 0:04:35]} exf4 {[%emt 0:00:43]} 14. Ng6 {[%emt 0:00:22]} f3 {[%emt 0:02:34]} 15. Bxf3 {[%emt 0:01:47]} Rf6 {[%emt 0:01:14]} 16. Nf4 {[%emt 0:00:25]} Ng5 {[%emt 0:01:03]} 17. Bg2 {[%emt 0:00:55]} Qd7 {[%emt 0:01:15]} 18. Nxe6 {[%emt 0:00:29]} Rxf1+ {[%emt 0:00:34]} 19. Qxf1 {[%emt 0:00:21]} Nxe6 {[%emt 0:00:22]} 20. d4 {[%emt 0:01:22]} Rf8 {[%emt 0:01:21]} 21. Qe2 {[%emt 0:01:30]} Ne7 {[%emt 0:01:37]} 22. Bd2 {[%emt 0:02:15]} Nd8 {[%emt 0:05:01]} 23. Re1 {[%emt 0:00:27]} Rf7 {[%emt 0:01:35]} 24. Qh5 {[%emt 0:00:50]} Qe8 {[%emt 0:02:15]} 25. Bd5 {[%emt 0:01:02]} Qf8 {[%emt 0:00:21]} 26. Bxf7+ {[%emt 0:00:33]} Qxf7 {[%emt 0:00:59]} 27. Qg4 {[%emt 0:01:44]} Nf5 {[%emt 0:01:59]} 28. Rf1 {[%emt 0:01:50]} g6 {[%emt 0:00:23]} 29. Bxh6 {[%emt 0:00:35]} Ne6 {[%emt 0:00:39]} 30. Bd2 {[%emt 0:00:27]} Neg7 {[%emt 0:00:38]} 31. d5 {[%emt 0:01:13]} c6 {[%emt 0:00:22]} 32. Qe4 {[%emt 0:00:35]} Qc7 {[%emt 0:00:55]} 33. g4 {[%emt 0:00:40]} Qb6+ {[%emt 0:00:47]} 34. Kh1 {[%emt 0:00:39]} 1-0

[Event "EWIRCC 2019"]
[Site "Monte-Carlo"]
[Date "2019.12.01"]
[Round "8.7"]
[White "Cramling, Pia"]
[Black "Bulmaga, Irina"]
[Result "1-0"]
[ECO "E16"]
[WhiteElo "2443"]
[BlackElo "2435"]
[Annotator "ChessBase"]
[PlyCount "75"]
[EventDate "2019.11.28"]
[EventType "swiss"]
[EventCountry "MNC"]
[SourceTitle "playchess.com"]
[Source "ChessBase"]
[SourceQuality "1"]
[TimeControl "5400+30"]

1. d4 {[%emt 1:15:11]} Nf6 {[%emt 1:15:12]} 2. Nf3 {[%emt 0:00:21]} e6 {[%emt 0:00:21]} 3. c4 {[%emt 0:00:21]} b6 {[%emt 0:00:22]} 4. g3 {[%emt 0:00:21]} Bb7 {[%emt 0:00:22]} 5. Bg2 {[%emt 0:00:21]} Bb4+ {[%emt 0:00:21]} 6. Bd2 {[%emt 0:00:24]} Be7 {[%emt 0:00:22]} 7. Nc3 {[%emt 0:00:36]} O-O {[%emt 0:00:23]} 8. Qc2 {[%emt 0:00:40]} c5 {[%emt 0:00:39]} 9. d5 {[%emt 0:01:05]} exd5 {[%emt 0:00:23]} 10. Ng5 {[%emt 0:02:02]} g6 {[%emt 0:00:53]} 11. h4 {[%emt 0:00:45]} Nc6 {[%emt 0:04:17]} 12. Nxd5 {[%emt 0:01:06]} Nd4 {[%emt 0:01:43]} 13. Qd3 {[%emt 0:01:51]} Nxd5 {[%emt 0:01:08]} 14. Bxd5 {[%emt 0:00:38]} Bxd5 {[%emt 0:00:44]} 15. cxd5 {[%emt 0:00:22]} Bf6 {[%emt 0:01:30]} 16. Kf1 {[%emt 0:02:37]} Re8 {[%emt 0:01:52]} 17. Re1 {[%emt 0:00:57]} h6 {[%emt 0:02:29]} 18. Ne4 {[%emt 0:02:30]} Bg7 {[%emt 0:00:21]} 19. Nd6 {[%emt 0:00:52]} Re5 {[%emt 0:01:06]} 20. e4 {[%emt 0:01:19]} Qf6 {[%emt 0:01:08]} 21. Nc4 {[%emt 0:00:40]} Ree8 {[%emt 0:01:11]} 22. Bc3 {[%emt 0:02:46]} b5 {[%emt 0:01:10]} 23. Nd2 {[%emt 0:00:41]} c4 {[%emt 0:01:35]} 24. Qe3 {[%emt 0:01:02]} Qb6 {[%emt 0:00:34]} 25. Kg2 {[%emt 0:03:02]} Nc2 {[%emt 0:02:24]} 26. Qf4 {[%emt 0:00:00]} Nxe1+ {[%emt 0:00:00]} 27. Rxe1 {[%emt 0:00:00]} Qc5 {[%emt 0:00:00]} 28. Re3 {[%emt 0:00:36]} Rf8 {[%emt 0:01:15]} 29. Nf3 {[%emt 0:00:47]} b4 {[%emt 0:00:34]} 30. Bxg7 {[%emt 0:00:26]} Kxg7 {[%emt 0:00:20]} 31. Ne5 {[%emt 0:00:29]} Rad8 {[%emt 0:00:34]} 32. Ng4 {[%emt 0:00:31]} Qd4 {[%emt 0:00:36]} 33. Qxh6+ {[%emt 0:00:30]} Kg8 {[%emt 0:00:20]} 34. Qg5 {[%emt 0:00:36]} f5 {[%emt 0:00:40]} 35. exf5 {[%emt 0:00:42]} Qxd5+ {[%emt 0:00:22]} 36. Kh2 {[%emt 0:00:27]} Qd4 {[%emt 0:00:37]} 37. Re7 {[%emt 0:00:37]} Rf7 {[%emt 0:00:31]} 38. Nh6+ {[%emt 0:00:25]} 1-0

[Event "EWIRCC 2019"]
[Site "Monte-Carlo"]
[Date "2019.12.01"]
[Round "8.8"]
[White "Berend, Elvira"]
[Black "Bodnaruk, Anastasia"]
[Result "1/2-1/2"]
[ECO "B07"]
[WhiteElo "2349"]
[BlackElo "2412"]
[Annotator "NA"]
[PlyCount "73"]
[EventDate "2019.11.28"]
[EventType "swiss"]
[EventCountry "MNC"]
[SourceTitle "playchess.com"]
[Source "ChessBase"]
[SourceQuality "1"]
[TimeControl "5400+30"]

1. d4 {[%emt 1:15:12]} Nf6 {[%emt 1:15:11]} 2. Nf3 {[%emt 0:00:22]} g6 {[%emt 0:00:21]} 3. g3 {[%emt 0:00:25]} Bg7 {[%emt 0:00:21]} 4. Bg2 {[%emt 0:00:22]} O-O {[%emt 0:00:22]} 5. O-O {[%emt 0:00:23]} d6 {[%emt 0:00:23]} 6. Nc3 {[%emt 0:00:23]} Nbd7 {[%emt 0:01:21]} 7. e4 {[%emt 0:00:39]} e5 {[%emt 0:00:23]} 8. h3 {[%emt 0:00:49]} exd4 {[%emt 0:00:58]} 9. Nxd4 {[%emt 0:00:22]} Re8 {[%emt 0:00:21]} 10. Re1 {[%emt 0:00:26]} Nc5 {[%emt 0:00:42]} 11. Nb3 {[%emt 0:00:38]} Nxb3 {[%emt 0:02:14]} 12. axb3 {[%emt 0:00:22]} Bd7 {[%emt 0:00:34]} 13. b4 {[%emt 0:01:08]} a6 {[%emt 0:00:28]} 14. Bf4 {[%emt 0:02:12]} Bc6 {[%emt 0:01:18]} 15. Qd2 {[%emt 0:00:29]} Nd7 {[%emt 0:01:49]} 16. Bg5 {[%emt 0:00:56]} Bf6 {[%emt 0:01:09]} 17. Bxf6 {[%emt 0:00:55]} Qxf6 {[%emt 0:00:26]} 18. f4 {[%emt 0:01:30]} Nb6 {[%emt 0:01:30]} 19. b3 {[%emt 0:00:21]} Rad8 {[%emt 0:00:57]} 20. Rad1 {[%emt 0:00:26]} h5 {[%emt 0:01:14]} 21. Rf1 {[%emt 0:01:12]} Kg7 {[%emt 0:01:28]} 22. Qd3 {[%emt 0:01:12]} d5 {[%emt 0:03:30]} 23. exd5 {[%emt 0:01:02]} Bxd5 {[%emt 0:00:38]} 24. Nxd5 {[%emt 0:01:54]} Nxd5 {[%emt 0:00:28]} 25. Bxd5 {[%emt 0:00:22]} c6 {[%emt 0:00:26]} 26. c4 {[%emt 0:00:25]} cxd5 {[%emt 0:01:36]} 27. cxd5 {[%emt 0:00:21]} Qb6+ {[%emt 0:00:24]} 28. Qd4+ {[%emt 0:00:23]} Qxd4+ {[%emt 0:00:22]} 29. Rxd4 {[%emt 0:00:21]} Re3 {[%emt 0:00:23]} 30. Kf2 {[%emt 0:01:23]} Rxb3 {[%emt 0:00:21]} 31. Rc1 {[%emt 0:00:22]} Rb2+ {[%emt 0:01:05]} 32. Kf3 {[%emt 0:00:23]} Rb3+ {[%emt 0:00:23]} 33. Kf2 {[%emt 0:00:24]} Rb2+ {[%emt 0:00:22]} 34. Kf3 {[%emt 0:00:32]} Rb3+ {[%emt 0:00:21]} 35. Kf2 {[%emt 0:00:26]} Rb2+ {[%emt 0:00:22]} 36. Kf3 {[%emt 0:00:23]} Rb3+ {[%emt 0:03:49]} 37. Ke4 {[%emt 0:09:05]} 1/2-1/2

[Event "EWIRCC 2019"]
[Site "Monte-Carlo"]
[Date "2019.12.01"]
[Round "8.9"]
[White "Paehtz, Elisabeth"]
[Black "Solozhenkina, Elizaveta"]
[Result "1-0"]
[ECO "D02"]
[WhiteElo "2484"]
[BlackElo "2314"]
[Annotator "ChessBase"]
[PlyCount "97"]
[EventDate "2019.11.28"]
[EventType "swiss"]
[EventCountry "MNC"]
[SourceTitle "playchess.com"]
[Source "ChessBase"]
[SourceQuality "1"]
[TimeControl "5400+30"]

1. d4 {[%emt 1:15:13]} Nf6 {[%emt 1:15:11]} 2. Nf3 {[%emt 0:00:21]} e6 {[%emt 0:00:23]} 3. Bf4 {[%emt 0:00:21]} d5 {[%emt 0:00:22]} 4. e3 {[%emt 0:00:21]} c5 {[%emt 0:00:22]} 5. Nbd2 {[%emt 0:00:22]} Nc6 {[%emt 0:00:25]} 6. c3 {[%emt 0:00:22]} Bd6 {[%emt 0:00:25]} 7. Bg3 {[%emt 0:00:21]} O-O {[%emt 0:00:23]} 8. Bd3 {[%emt 0:00:22]} b6 {[%emt 0:00:59]} 9. e4 {[%emt 0:00:24]} Be7 {[%emt 0:02:29]} 10. e5 {[%emt 0:00:21]} Nh5 {[%emt 0:00:21]} 11. a3 {[%emt 0:00:21]} a5 {[%emt 0:03:45]} 12. Qe2 {[%emt 0:00:21]} g6 {[%emt 0:00:48]} 13. Nf1 {[%emt 0:00:39]} f5 {[%emt 0:01:33]} 14. exf6 {[%emt 0:00:38]} Bxf6 {[%emt 0:00:34]} 15. Bb5 {[%emt 0:00:29]} Na7 {[%emt 0:00:59]} 16. Ba4 {[%emt 0:00:24]} cxd4 {[%emt 0:01:58]} 17. cxd4 {[%emt 0:00:47]} b5 {[%emt 0:00:21]} 18. Bc2 {[%emt 0:00:33]} Nc6 {[%emt 0:00:47]} 19. Rd1 {[%emt 0:00:21]} b4 {[%emt 0:01:22]} 20. a4 {[%emt 0:00:21]} Nxg3 {[%emt 0:01:08]} 21. hxg3 {[%emt 0:00:25]} Qb6 {[%emt 0:00:24]} 22. Qd2 {[%emt 0:04:21]} Ra7 {[%emt 0:00:30]} 23. Ne3 {[%emt 0:00:26]} b3 {[%emt 0:00:57]} 24. Bb1 {[%emt 0:00:38]} Ba6 {[%emt 0:01:04]} 25. Ng4 {[%emt 0:00:42]} Rc7 {[%emt 0:01:04]} 26. Bd3 {[%emt 0:04:15]} Nb4 {[%emt 0:00:52]} 27. Bxa6 {[%emt 0:01:08]} Qxa6 {[%emt 0:00:25]} 28. Qe2 {[%emt 0:01:46]} Rc2 {[%emt 0:01:25]} 29. Qxa6 {[%emt 0:00:33]} Nxa6 {[%emt 0:00:21]} 30. Rd2 {[%emt 0:00:24]} Rc1+ {[%emt 0:00:25]} 31. Rd1 {[%emt 0:00:21]} Rc2 {[%emt 0:00:20]} 32. O-O {[%emt 0:01:35]} Bg7 {[%emt 0:01:00]} 33. Rb1 {[%emt 0:01:32]} Nb4 {[%emt 0:00:48]} 34. Ne3 {[%emt 0:00:33]} Rc7 {[%emt 0:00:28]} 35. Rfd1 {[%emt 0:00:28]} Rfc8 {[%emt 0:00:36]} 36. Nf1 {[%emt 0:01:11]} Nc2 {[%emt 0:00:48]} 37. Rd3 {[%emt 0:00:27]} Rb8 {[%emt 0:01:16]} 38. N1d2 {[%emt 0:00:32]} Rb4 {[%emt 0:00:56]} 39. Nxb3 {[%emt 0:00:31]} Rxa4 {[%emt 0:00:30]} 40. Nc5 {[%emt 0:00:38]} Ra2 {[%emt 0:00:31]} 41. Nxe6 {[%emt 0:00:26]} Rb7 {[%emt 0:00:21]} 42. Rc3 {[%emt 0:01:27]} Raxb2 {[%emt 0:01:04]} 43. Rxb2 {[%emt 0:00:51]} Rxb2 {[%emt 0:00:22]} 44. Nfg5 {[%emt 0:00:21]} Rb1+ {[%emt 0:00:43]} 45. Kh2 {[%emt 0:00:21]} Rb8 {[%emt 0:00:28]} 46. Rxc2 {[%emt 0:00:22]} Bf6 {[%emt 0:00:26]} 47. Nf3 {[%emt 0:00:27]} a4 {[%emt 0:00:23]} 48. Ra2 {[%emt 0:00:25]} Ra8 {[%emt 0:00:31]} 49. Ra3 {[%emt 0:00:40]} 1-0

[Event "EWIRCC 2019"]
[Site "Monte-Carlo"]
[Date "2019.12.01"]
[Round "8.10"]
[White "Daulyte-Cornette, Deimante"]
[Black "Babiy, Olga"]
[Result "1-0"]
[ECO "B49"]
[WhiteElo "2405"]
[BlackElo "2249"]
[Annotator "ChessBase"]
[PlyCount "147"]
[EventDate "2019.11.28"]
[EventType "swiss"]
[EventCountry "MNC"]
[SourceTitle "playchess.com"]
[Source "ChessBase"]
[SourceQuality "1"]
[TimeControl "5400+30"]

1. e4 {[%emt 1:15:12]} c5 {[%emt 1:15:11]} 2. Nc3 {[%emt 0:00:22]} e6 {[%emt 0:00:21]} 3. Nge2 {[%emt 0:00:27]} Nc6 {[%emt 0:00:30]} 4. d4 {[%emt 0:00:25]} cxd4 {[%emt 0:00:21]} 5. Nxd4 {[%emt 0:00:22]} Qc7 {[%emt 0:00:27]} 6. Be3 {[%emt 0:01:12]} a6 {[%emt 0:00:22]} 7. a3 {[%emt 0:00:28]} b5 {[%emt 0:00:31]} 8. Nxc6 {[%emt 0:00:30]} Qxc6 {[%emt 0:00:28]} 9. Be2 {[%emt 0:00:36]} Bb7 {[%emt 0:00:31]} 10. O-O {[%emt 0:00:41]} Ne7 {[%emt 0:00:40]} 11. Qd2 {[%emt 0:00:56]} Nf5 {[%emt 0:01:00]} 12. Bf4 {[%emt 0:00:33]} Bc5 {[%emt 0:00:58]} 13. Rfd1 {[%emt 0:00:37]} Nd4 {[%emt 0:01:36]} 14. Bf1 {[%emt 0:00:28]} d6 {[%emt 0:01:05]} 15. Be3 {[%emt 0:02:39]} e5 {[%emt 0:00:37]} 16. Nd5 {[%emt 0:01:17]} Qd7 {[%emt 0:01:16]} 17. Bxd4 {[%emt 0:03:14]} Bxd4 {[%emt 0:00:28]} 18. c3 {[%emt 0:00:39]} Ba7 {[%emt 0:02:48]} 19. Qg5 {[%emt 0:00:27]} Kf8 {[%emt 0:00:51]} 20. Rd3 {[%emt 0:00:33]} h6 {[%emt 0:00:40]} 21. Qh5 {[%emt 0:01:08]} Rd8 {[%emt 0:01:02]} 22. Rad1 {[%emt 0:00:35]} g6 {[%emt 0:01:38]} 23. Qh4 {[%emt 0:01:04]} Bxd5 {[%emt 0:00:37]} 24. Qf6 {[%emt 0:02:48]} Rg8 {[%emt 0:00:31]} 25. Rxd5 {[%emt 0:00:27]} Bb8 {[%emt 0:00:26]} 26. Qxe5 {[%emt 0:00:47]} Qe7 {[%emt 0:01:57]} 27. Qxe7+ {[%emt 0:01:30]} Kxe7 {[%emt 0:00:22]} 28. c4 {[%emt 0:00:22]} bxc4 {[%emt 0:03:06]} 29. Bxc4 {[%emt 0:00:21]} Rc8 {[%emt 0:00:21]} 30. Bxa6 {[%emt 0:00:23]} Rc2 {[%emt 0:00:22]} 31. R5d2 {[%emt 0:00:30]} Rxd2 {[%emt 0:00:28]} 32. Rxd2 {[%emt 0:00:21]} Ba7 {[%emt 0:00:25]} 33. Rc2 {[%emt 0:01:00]} Bd4 {[%emt 0:01:30]} 34. Rc7+ {[%emt 0:00:46]} Kf6 {[%emt 0:00:22]} 35. b4 {[%emt 0:02:00]} Re8 {[%emt 0:00:29]} 36. Bb7 {[%emt 0:00:41]} Re7 {[%emt 0:01:06]} 37. Rxe7 {[%emt 0:00:24]} Kxe7 {[%emt 0:00:21]} 38. Kf1 {[%emt 0:00:54]} h5 {[%emt 0:01:01]} 39. a4 {[%emt 0:00:31]} Bc3 {[%emt 0:00:35]} 40. b5 {[%emt 0:00:21]} g5 {[%emt 0:00:36]} 41. f3 {[%emt 0:00:27]} h4 {[%emt 0:00:51]} 42. g3 {[%emt 0:00:48]} hxg3 {[%emt 0:00:25]} 43. hxg3 {[%emt 0:00:22]} Ba5 {[%emt 0:00:57]} 44. Ke2 {[%emt 0:00:26]} Kd7 {[%emt 0:00:56]} 45. Bd5 {[%emt 0:00:25]} f6 {[%emt 0:00:21]} 46. Kd3 {[%emt 0:01:03]} Kc7 {[%emt 0:00:40]} 47. Bc6 {[%emt 0:01:04]} Be1 {[%emt 0:00:38]} 48. g4 {[%emt 0:00:28]} Ba5 {[%emt 0:00:35]} 49. Kc4 {[%emt 0:00:21]} Be1 {[%emt 0:00:29]} 50. Kd5 {[%emt 0:00:28]} Bc3 {[%emt 0:00:43]} 51. Ke6 {[%emt 0:00:23]} Kb6 {[%emt 0:00:45]} 52. Kxd6 {[%emt 0:00:23]} Be5+ {[%emt 0:00:21]} 53. Ke6 {[%emt 0:00:28]} Bc3 {[%emt 0:00:41]} 54. Bd5 {[%emt 0:00:30]} Be5 {[%emt 0:00:25]} 55. Bc6 {[%emt 0:00:33]} Bc3 {[%emt 0:00:21]} 56. Kd5 {[%emt 0:00:23]} Be5 {[%emt 0:00:31]} 57. Be8 {[%emt 0:00:23]} Bb2 {[%emt 0:00:31]} 58. Ke6 {[%emt 0:00:25]} Bc3 {[%emt 0:00:23]} 59. Kf5 {[%emt 0:00:23]} Bd4 {[%emt 0:00:48]} 60. f4 {[%emt 0:00:37]} gxf4 {[%emt 0:00:27]} 61. Kxf4 {[%emt 0:00:22]} Bc3 {[%emt 0:00:33]} 62. Kf5 {[%emt 0:00:58]} Kc5 {[%emt 0:00:27]} 63. g5 {[%emt 0:00:24]} fxg5 {[%emt 0:00:25]} 64. Kxg5 {[%emt 0:00:22]} Kd6 {[%emt 0:00:28]} 65. Kf5 {[%emt 0:00:23]} Ba5 {[%emt 0:00:28]} 66. e5+ {[%emt 0:00:23]} Ke7 {[%emt 0:00:26]} 67. Bc6 {[%emt 0:00:21]} Bb6 {[%emt 0:00:25]} 68. Ke4 {[%emt 0:00:26]} Ke6 {[%emt 0:00:24]} 69. Bd5+ {[%emt 0:00:21]} Ke7 {[%emt 0:00:21]} 70. Bc4 {[%emt 0:00:26]} Kd7 {[%emt 0:00:35]} 71. Kd5 {[%emt 0:00:23]} Ba5 {[%emt 0:00:20]} 72. Be2 {[%emt 0:00:27]} Bc7 {[%emt 0:00:37]} 73. Bg4+ {[%emt 0:00:24]} Ke7 {[%emt 0:00:21]} 74. e6 {[%emt 0:00:28]} 1-0

[Event "EWIRCC 2019"]
[Site "Monte-Carlo"]
[Date "2019.12.01"]
[Round "8.12"]
[White "Guichard, Pauline"]
[Black "Bensdorp-De Labaca, Marlies"]
[Result "1-0"]
[ECO "D02"]
[WhiteElo "2407"]
[BlackElo "2228"]
[Annotator "NA"]
[PlyCount "75"]
[EventDate "2019.11.28"]
[EventType "swiss"]
[EventCountry "MNC"]
[SourceTitle "playchess.com"]
[Source "ChessBase"]
[SourceQuality "1"]
[TimeControl "5400+30"]

1. d4 {[%emt 1:15:12]} d5 {[%emt 1:15:13]} 2. Bf4 {[%emt 0:00:22]} Nf6 {[%emt 0:00:24]} 3. e3 {[%emt 0:00:22]} e6 {[%emt 0:00:22]} 4. Nd2 {[%emt 0:00:24]} Bd6 {[%emt 0:00:33]} 5. Bg3 {[%emt 0:00:22]} O-O {[%emt 0:00:22]} 6. Bd3 {[%emt 0:00:42]} c5 {[%emt 0:00:26]} 7. c3 {[%emt 0:00:22]} Nc6 {[%emt 0:00:25]} 8. Ngf3 {[%emt 0:00:24]} cxd4 {[%emt 0:01:11]} 9. exd4 {[%emt 0:00:45]} Qc7 {[%emt 0:00:25]} 10. O-O {[%emt 0:01:03]} Bxg3 {[%emt 0:01:26]} 11. hxg3 {[%emt 0:00:23]} e5 {[%emt 0:00:34]} 12. dxe5 {[%emt 0:01:05]} Nxe5 {[%emt 0:00:21]} 13. Nxe5 {[%emt 0:00:28]} Qxe5 {[%emt 0:00:22]} 14. Re1 {[%emt 0:00:57]} Qd6 {[%emt 0:00:33]} 15. Qa4 {[%emt 0:00:30]} Bd7 {[%emt 0:00:57]} 16. Qd4 {[%emt 0:00:34]} b6 {[%emt 0:01:19]} 17. Ne4 {[%emt 0:01:11]} Nxe4 {[%emt 0:05:05]} 18. Bxe4 {[%emt 0:00:24]} Be6 {[%emt 0:00:33]} 19. Rad1 {[%emt 0:00:49]} Rad8 {[%emt 0:00:27]} 20. c4 {[%emt 0:00:35]} Qb4 {[%emt 0:03:46]} 21. cxd5 {[%emt 0:01:06]} Qa5 {[%emt 0:00:56]} 22. Bxh7+ {[%emt 0:01:51]} Kxh7 {[%emt 0:00:33]} 23. Qe4+ {[%emt 0:00:35]} Bf5 {[%emt 0:02:38]} 24. Qxf5+ {[%emt 0:00:23]} g6 {[%emt 0:00:21]} 25. Qg5 {[%emt 0:03:23]} Qxa2 {[%emt 0:03:18]} 26. Re4 {[%emt 0:01:22]} Qxb2 {[%emt 0:00:00]} 27. Rh4+ {[%emt 0:03:02]} Kg8 {[%emt 0:00:00]} 28. Rdd4 {[%emt 0:00:22]} Qb1+ {[%emt 0:00:27]} 29. Kh2 {[%emt 0:00:22]} f6 {[%emt 0:01:07]} 30. Qh6 {[%emt 0:00:31]} Rd7 {[%emt 0:00:42]} 31. d6 {[%emt 0:03:39]} Qf5 {[%emt 0:00:33]} 32. Rdf4 {[%emt 0:01:25]} Qg5 {[%emt 0:00:24]} 33. Qh8+ {[%emt 0:00:30]} Kf7 {[%emt 0:00:22]} 34. Qh7+ {[%emt 0:00:56]} Ke8 {[%emt 0:00:27]} 35. Re4+ {[%emt 0:00:23]} Kd8 {[%emt 0:00:21]} 36. Re7 {[%emt 0:00:34]} Rxd6 {[%emt 0:00:26]} 37. Rxa7 {[%emt 0:00:26]} Qe5 {[%emt 0:00:31]} 38. Ra8# {[%emt 0:00:26]} 1-0

[Event "EWIRCC 2019"]
[Site "Monte-Carlo"]
[Date "2019.12.01"]
[Round "8.14"]
[White "Worek, Joanna"]
[Black "Zaksaite, Salomeja"]
[Result "1/2-1/2"]
[ECO "B45"]
[WhiteElo "2316"]
[BlackElo "2202"]
[Annotator "NA"]
[PlyCount "151"]
[EventDate "2019.11.28"]
[EventType "swiss"]
[EventCountry "MNC"]
[SourceTitle "playchess.com"]
[Source "ChessBase"]
[SourceQuality "1"]
[TimeControl "5400+30"]

1. e4 {[%emt 1:15:11]} c5 {[%emt 1:15:16]} 2. Nf3 {[%emt 0:00:22]} e6 {[%emt 0:00:20]} 3. d4 {[%emt 0:00:21]} cxd4 {[%emt 0:00:21]} 4. Nxd4 {[%emt 0:00:20]} Nf6 {[%emt 0:00:21]} 5. Nc3 {[%emt 0:00:23]} Nc6 {[%emt 0:00:21]} 6. Nxc6 {[%emt 0:00:27]} bxc6 {[%emt 0:00:21]} 7. e5 {[%emt 0:00:21]} Nd5 {[%emt 0:00:21]} 8. Nxd5 {[%emt 0:00:23]} cxd5 {[%emt 0:00:26]} 9. Bd3 {[%emt 0:00:22]} Qc7 {[%emt 0:00:57]} 10. Qe2 {[%emt 0:00:22]} Bb4+ {[%emt 0:00:22]} 11. Kf1 {[%emt 0:00:21]} a5 {[%emt 0:03:58]} 12. h4 {[%emt 0:00:24]} d6 {[%emt 0:05:22]} 13. Bf4 {[%emt 0:09:26]} O-O {[%emt 0:01:46]} 14. h5 {[%emt 0:00:29]} dxe5 {[%emt 0:00:27]} 15. Bxe5 {[%emt 0:00:32]} Bd6 {[%emt 0:00:34]} 16. Bxd6 {[%emt 0:01:36]} Qxd6 {[%emt 0:00:21]} 17. c4 {[%emt 0:00:29]} Bb7 {[%emt 0:02:24]} 18. Rd1 {[%emt 0:00:44]} Rad8 {[%emt 0:00:35]} 19. cxd5 {[%emt 0:03:12]} exd5 {[%emt 0:00:52]} 20. Rh3 {[%emt 0:00:26]} Rfe8 {[%emt 0:01:42]} 21. Qd2 {[%emt 0:00:21]} d4 {[%emt 0:01:00]} 22. Kg1 {[%emt 0:03:10]} Qd5 {[%emt 0:00:51]} 23. Bf1 {[%emt 0:00:29]} Re5 {[%emt 0:00:45]} 24. h6 {[%emt 0:00:28]} Rg5 {[%emt 0:00:55]} 25. f4 {[%emt 0:00:29]} Rg6 {[%emt 0:00:39]} 26. hxg7 {[%emt 0:00:22]} Rxg7 {[%emt 0:01:05]} 27. Rd3 {[%emt 0:00:43]} Rg4 {[%emt 0:00:50]} 28. Rxd4 {[%emt 0:00:25]} Qc5 {[%emt 0:00:23]} 29. Qf2 {[%emt 0:00:21]} Re8 {[%emt 0:00:36]} 30. f5 {[%emt 0:00:27]} Rg5 {[%emt 0:00:30]} 31. f6 {[%emt 0:00:28]} Kh8 {[%emt 0:00:26]} 32. Rd8 {[%emt 0:00:34]} Qxf2+ {[%emt 0:00:42]} 33. Kxf2 {[%emt 0:00:21]} Rgg8 {[%emt 0:00:24]} 34. Rxe8 {[%emt 0:00:26]} Rxe8 {[%emt 0:00:20]} 35. Rd7 {[%emt 0:00:21]} Be4 {[%emt 0:00:37]} 36. Bc4 {[%emt 0:01:34]} Bg6 {[%emt 0:00:33]} 37. Ra7 {[%emt 0:00:29]} Rc8 {[%emt 0:00:33]} 38. b3 {[%emt 0:00:25]} h6 {[%emt 0:00:24]} 39. Bxf7 {[%emt 0:00:29]} Bxf7 {[%emt 0:00:32]} 40. Rxf7 {[%emt 0:00:23]} Rc2+ {[%emt 0:00:20]} 41. Kf3 {[%emt 0:00:21]} Rxa2 {[%emt 0:00:21]} 42. g4 {[%emt 0:01:43]} Rb2 {[%emt 0:00:24]} 43. Kf4 {[%emt 0:00:00]} Rf2+ {[%emt 0:00:58]} 44. Ke5 {[%emt 0:00:00]} Kg8 {[%emt 0:00:29]} 45. Ra7 {[%emt 0:00:00]} Rf3 {[%emt 0:00:32]} 46. Rxa5 {[%emt 0:00:24]} Rxb3 {[%emt 0:00:22]} 47. Kf5 {[%emt 0:00:22]} Rb4 {[%emt 0:00:38]} 48. Ra7 {[%emt 0:00:26]} Kf8 {[%emt 0:00:25]} 49. Rh7 {[%emt 0:00:23]} Rb5+ {[%emt 0:00:26]} 50. Kf4 {[%emt 0:00:53]} Rb4+ {[%emt 0:00:23]} 51. Kg3 {[%emt 0:00:23]} Rb6 {[%emt 0:00:49]} 52. Rxh6 {[%emt 0:00:22]} Kf7 {[%emt 0:00:22]} 53. Rh7+ {[%emt 0:00:23]} Kg6 {[%emt 0:00:21]} 54. f7 {[%emt 0:01:21]} Rb8 {[%emt 0:00:35]} 55. Rh5 {[%emt 0:00:25]} Kxf7 {[%emt 0:00:22]} 56. Rh6 {[%emt 0:00:22]} Kg7 {[%emt 0:00:21]} 57. Rc6 {[%emt 0:00:21]} Ra8 {[%emt 0:00:23]} 58. Kh4 {[%emt 0:00:24]} Rb8 {[%emt 0:00:22]} 59. Kh5 {[%emt 0:00:22]} Rb5+ {[%emt 0:00:27]} 60. g5 {[%emt 0:00:22]} Rb8 {[%emt 0:00:32]} 61. Rc7+ {[%emt 0:00:21]} Kg8 {[%emt 0:00:23]} 62. Kh6 {[%emt 0:00:21]} Ra8 {[%emt 0:00:23]} 63. g6 {[%emt 0:00:22]} Rb8 {[%emt 0:00:20]} 64. Rg7+ {[%emt 0:00:24]} Kh8 {[%emt 0:00:22]} 65. Rf7 {[%emt 0:00:58]} Kg8 {[%emt 0:00:22]} 66. Rf6 {[%emt 0:00:25]} Rb1 {[%emt 0:00:37]} 67. Rf5 {[%emt 0:00:30]} Rh1+ {[%emt 0:00:24]} 68. Kg5 {[%emt 0:00:21]} Ra1 {[%emt 0:00:34]} 69. Rb5 {[%emt 0:01:14]} Rg1+ {[%emt 0:00:28]} 70. Kf6 {[%emt 0:00:21]} Rf1+ {[%emt 0:00:22]} 71. Rf5 {[%emt 0:00:32]} Rxf5+ {[%emt 0:00:23]} 72. Kxf5 {[%emt 0:00:21]} Kg7 {[%emt 0:00:21]} 73. Kg5 {[%emt 0:02:07]} Kg8 74. Kf6 {[%emt 0:00:00]} Kf8 {[%emt 0:00:51]} 75. g7+ {[%emt 0:00:00]} Kg8 {[%emt 0:00:21]} 76. Kg6 1/2-1/2